bitfinex-derivatives/quotes_BNBF0:USTF0_20260110
["timestamp","ask_amount","ask_price","bid_price","bid_amount"]
[1768065395427,0.19128394,910.3,909.7,0.7072881]
[1768065395630,0.19128394,910.3,909.71,0.7072881]
[1768065395828,0.19128394,910.3,909.72,0.7072881]
[1768065396028,0.19128394,910.3,909.73,0.7072881]
[1768065396231,0.19128394,910.3,909.74,0.7072881]
[1768065396428,0.19128394,910.3,909.75,0.7072881]
[1768065396732,0.19128394,910.3,909.76,0.7072881]
[1768065396932,0.19128394,910.3,909.47,0.82205091]
[1768065397132,0.19128394,910.3,909.48,0.70729926]
[1768065397331,0.19128394,910.3,909.49,0.70729926]
[1768065397530,0.19128394,910.3,909.5,0.70729926]
[1768065397729,0.19128394,910.3,909.51,0.70729926]
[1768065397929,0.19128394,910.3,909.52,0.70729926]
[1768065398132,0.19128394,910.3,909.53,0.70729926]
[1768065398330,0.19128394,910.3,909.54,0.70729926]
[1768065398633,0.19128394,910.3,909.55,0.70729926]
[1768065398833,0.19128394,910.3,909.56,0.70729926]
[1768065399033,0.19128394,910.3,909.57,0.70729926]
[1768065399232,0.19128394,910.3,909.58,0.70729926]
[1768065399431,0.19128394,910.3,909.59,0.70729926]
[1768065399631,0.19128394,910.3,909.6,0.70729926]
[1768065399833,0.19128394,910.3,909.61,0.70729926]
[1768065400035,0.19128394,910.3,909.62,0.70729926]
[1768065400336,0.19128394,910.3,909.63,0.70729926]
[1768065400632,0.19128394,910.3,909.64,0.70729926]
[1768065400838,0.19128394,910.3,909.65,0.70729926]
[1768065401035,0.19128394,910.3,909.66,0.70729926]
[1768065401238,0.19128394,910.3,909.67,0.70729926]
[1768065401434,0.19128394,910.3,909.68,0.70729926]
[1768065401640,0.19128394,910.3,909.69,0.70729926]
[1768065401838,0.19128394,910.3,909.7,0.70729926]
[1768065402037,0.19128394,910.3,909.71,0.70729926]
[1768065402238,0.19128394,910.3,909.72,0.70729926]
[1768065402437,0.19128394,910.3,909.73,0.70729926]
[1768065402639,0.19128394,910.3,909.39,0.82205091]
[1768065402840,0.19128394,910.3,909.4,0.70732971]
[1768065403037,0.19128394,910.3,909.41,0.70732971]
[1768065403241,0.19128394,910.3,909.39,0.82205091]
[1768065403242,0.19128394,910.3,909.42,0.70732971]
[1768065403541,0.19128394,910.3,909.43,0.70732971]
[1768065403742,2.72679797,911.14,909.44,0.70732971]
[1768065403936,0.19120354,910.17,909.45,0.70732971]
[1768065404241,2.72679797,911.08,909.46,0.70732971]
[1768065404438,0.19120249,910.17,909.47,0.70732971]
[1768065404640,0.19120249,910.17,909.48,0.70732971]
[1768065404838,2.72679797,911.08,909.49,0.70732971]
[1768065405039,0.19120459,910.17,909.5,0.70732971]
[1768065405238,2.72679797,911.08,909.51,0.70732971]
[1768065405437,2.72679797,911.08,909.52,0.70732971]
[1768065405638,0.19120301,910.17,909.53,0.70732971]
[1768065405841,2.72679797,911.09,909.54,0.70732971]
[1768065406042,0.19120091,910.17,909.55,0.70732971]
[1768065406340,2.72679797,911.09,909.56,0.70732971]
[1768065406537,0.19119986,910.17,909.57,0.70732971]
[1768065406740,0.19119986,910.17,909.58,0.70732971]
[1768065406942,2.72679797,911.09,909.59,0.70732971]
[1768065407139,0.19119881,910.17,909.6,0.70732971]
[1768065407339,2.72679797,911.1,909.31,0.82205091]
[1768065407541,2.72679797,911.1,909.32,0.70687682]
[1768065407839,2.72679797,911.1,909.33,0.70687682]
[1768065408145,0.19121142,910.66,909.34,0.70687682]
[1768065408343,0.19121142,910.66,909.35,0.70687682]
[1768065408546,0.19121142,910.66,909.36,0.70687682]
[1768065408746,0.19121142,910.66,909.37,0.70687682]
[1768065408944,0.19121142,910.66,909.38,0.70687682]
[1768065409148,0.19121142,910.66,909.39,0.70687682]
[1768065409448,0.19121142,910.66,909.4,0.70687682]
[1768065409648,0.19121142,910.66,909.41,0.70687682]
[1768065409848,0.19121142,910.66,909.42,0.70687682]
[1768065410047,0.19121142,910.66,909.43,0.70687682]
[1768065410243,0.19121142,910.66,909.44,0.70687682]
[1768065410444,0.19121142,910.66,909.45,0.70687682]
[1768065410646,0.19121142,910.66,909.46,0.70687682]
[1768065410844,0.19121142,910.66,909.47,0.70687682]
[1768065411048,0.19121142,910.66,909.48,0.70687682]
[1768065411249,0.19121142,910.66,909.49,0.70687682]
[1768065411545,0.19121142,910.66,909.5,0.70687682]
[1768065411747,0.19121142,910.66,909.51,0.70687682]
[1768065411948,0.19121142,910.66,909.52,0.70687682]
[1768065412146,0.19121142,910.66,909.53,0.70687682]
[1768065412346,0.19121142,910.66,909.54,0.70687682]
[1768065412550,0.19121142,910.66,909.55,0.70687682]
[1768065412843,0.19121142,910.66,909.56,0.70687682]
[1768065413046,0.19121142,910.66,909.57,0.70687682]
[1768065413346,0.19121142,910.66,909.29,0.82205091]
[1768065413347,0.19121142,910.66,909.58,0.70687682]
[1768065413543,0.19121142,910.66,909.29,0.82205091]
[1768065413744,0.19121142,910.66,909.3,0.7066756]
[1768065413948,0.19121142,910.66,909.31,0.7066756]
[1768065414151,0.19121142,910.66,909.32,0.7066756]
[1768065414450,0.19121142,910.66,909.33,0.7066756]
[1768065414644,0.19121142,910.66,909.34,0.7066756]
[1768065414949,0.19121142,910.66,909.35,0.7066756]
[1768065415148,0.19121142,910.66,909.36,0.7066756]
[1768065415346,0.19121142,910.66,909.37,0.7066756]
[1768065415546,0.19121142,910.66,909.38,0.7066756]
[1768065415845,0.19121142,910.66,909.39,0.7066756]
[1768065416045,0.19121142,910.66,909.4,0.7066756]
[1768065416245,0.19121142,910.66,909.41,0.7066756]
[1768065416447,0.19121142,910.66,909.42,0.7066756]
[1768065416646,0.19121142,910.66,909.43,0.7066756]
[1768065416848,0.19121142,910.66,909.44,0.7066756]
[1768065417046,0.19121142,910.66,909.45,0.7066756]
[1768065417248,0.19121142,910.66,909.46,0.7066756]
[1768065417447,0.19121142,910.66,909.47,0.7066756]
[1768065417646,0.19121142,910.66,909.48,0.7066756]
[1768065417850,0.19121142,910.66,909.49,0.7066756]
[1768065418047,0.19121142,910.66,909.5,0.7066756]
[1768065418351,0.19121142,910.66,909.51,0.7066756]
[1768065418551,0.19121142,910.66,909.52,0.7066756]
[1768065418850,0.19121142,910.66,909.53,0.7066756]
[1768065419047,0.19121142,910.66,909.54,0.7066756]
[1768065419351,0.19121142,910.66,909.55,0.7066756]
[1768065419547,0.19121142,910.66,909.56,0.7066756]
[1768065419847,0.19121142,910.66,909.57,0.7066756]
[1768065420048,0.19121142,910.66,909.58,0.7066756]
[1768065420246,0.19121142,910.66,909.59,0.7066756]
[1768065420450,0.19121142,910.66,909.6,0.70696639]
[1768065420647,0.19121142,910.66,909.31,0.82205091]
[1768065420848,0.19121142,910.66,909.32,0.70708107]
[1768065421048,0.19121142,910.66,909.33,0.70708107]
[1768065421251,0.19121142,910.66,909.34,0.70708107]
[1768065421546,0.19121142,910.66,909.35,0.70708107]
[1768065421746,0.19121142,910.66,909.36,0.70708107]
[1768065422049,0.19121142,910.66,909.37,0.70708107]
[1768065422252,0.19121142,910.66,909.38,0.70708107]
[1768065422449,0.19121142,910.66,909.39,0.70708107]
[1768065422652,0.19121142,910.66,909.4,0.70708107]
[1768065422854,0.19121142,910.66,909.41,0.70708107]
[1768065423153,0.19121142,910.66,909.42,0.70708107]
[1768065423350,0.19121142,910.66,909.43,0.70708107]
[1768065423553,0.19121142,910.66,909.44,0.70708107]
[1768065423750,0.19121142,910.66,909.45,0.70708107]
[1768065424050,0.19121142,910.66,909.46,0.70708107]
[1768065424249,0.19121142,910.66,909.47,0.70708107]
[1768065424453,0.19121142,910.66,909.48,0.70708107]
[1768065424652,0.19121142,910.66,909.49,0.70708107]
[1768065424853,0.19121142,910.66,909.5,0.70708107]
[1768065425053,0.19121142,910.66,909.51,0.70708107]
[1768065425354,0.19121142,910.66,909.52,0.70708107]
[1768065425554,0.19121142,910.66,909.53,0.70708107]
[1768065425752,0.19121142,910.66,909.54,0.70708107]
[1768065426052,0.19121142,910.66,909.55,0.70708107]
[1768065426251,0.19121142,910.66,909.56,0.70708107]
[1768065426454,0.19121142,910.66,909.57,0.70708107]
[1768065426653,0.19121142,910.66,909.58,0.70708107]
[1768065426851,0.19121142,910.66,909.59,0.70708107]
[1768065427054,0.19121142,910.66,909.6,0.70708107]
[1768065427250,0.19121142,910.66,909.61,0.70708107]
[1768065427455,0.19121142,910.66,909.62,0.70708107]
[1768065427652,0.19121142,910.66,909.63,0.70708107]
[1768065427852,0.19121142,910.66,909.64,0.70708107]
[1768065428057,0.19121142,910.66,909.34,0.82205091]
[1768065428253,0.19121142,910.66,909.35,0.70660448]
[1768065428558,0.19121142,910.66,909.36,0.70660448]
[1768065428854,0.19121142,910.66,909.37,0.70660448]
[1768065429154,0.19121142,910.66,909.38,0.70660448]
[1768065429354,0.19121142,910.66,909.39,0.70660448]
[1768065429657,0.19121142,910.66,909.4,0.70660448]
[1768065429853,0.19121142,910.66,909.41,0.70660448]
[1768065430053,0.19121142,910.66,909.42,0.70660448]
[1768065430257,0.19121142,910.66,909.43,0.70660448]
[1768065430457,0.19121142,910.66,909.44,0.70660448]
[1768065430756,0.19121142,910.66,909.45,0.70660448]
[1768065430956,0.19121142,910.66,909.46,0.70660448]
[1768065431154,0.19121142,910.66,909.47,0.70660448]
[1768065431354,0.19121142,910.66,909.48,0.70660448]
[1768065431558,0.19121142,910.66,909.49,0.70660448]
[1768065431760,0.19121142,910.66,909.5,0.70660448]
[1768065431960,0.19121142,910.66,909.51,0.70660448]
[1768065432158,0.19121142,910.66,909.52,0.70660448]
[1768065432361,0.19121142,910.66,909.53,0.70660448]
[1768065432662,0.19121142,910.66,909.54,0.70660448]
[1768065432858,0.19121142,910.66,909.55,0.70660448]
[1768065433058,0.19121142,910.66,909.56,0.70660448]
[1768065433356,0.19121142,910.66,909.57,0.70660448]
[1768065433557,0.19121142,910.66,909.58,0.70660448]
[1768065433757,0.19121142,910.66,909.59,0.70660448]
[1768065433960,0.19121142,910.66,909.6,0.70660448]
[1768065434260,0.19121142,910.66,909.61,0.70660448]
[1768065434561,0.19121142,910.66,909.62,0.70660448]
[1768065434757,0.19121142,910.66,909.63,0.70660448]
[1768065434962,0.19121142,910.66,909.64,0.70660448]
[1768065435163,0.19121142,910.66,909.35,0.82205091]
[1768065435360,0.19121142,910.66,909.36,0.70667205]
[1768065435662,0.19121142,910.66,909.37,0.70667205]
[1768065435861,0.19121142,910.66,909.38,0.70667205]
[1768065436064,0.19121142,910.66,909.39,0.70667205]
[1768065436364,0.19121142,910.66,909.4,0.70667205]
[1768065436560,0.19121142,910.66,909.41,0.70667205]
[1768065436864,0.19121142,910.66,909.42,0.70667205]
[1768065437059,0.19121142,910.66,909.43,0.70667205]
[1768065437360,0.19121142,910.66,909.44,0.70667205]
[1768065437559,0.19121142,910.66,909.45,0.70667205]
[1768065437762,0.19121142,910.66,909.46,0.70667205]
[1768065437961,0.19121142,910.66,909.47,0.70667205]
[1768065438164,0.19121142,910.66,909.48,0.70667205]
[1768065438362,0.19121142,910.66,909.49,0.70667205]
[1768065438563,0.19121142,910.66,909.5,0.70667205]
[1768065438766,0.19121142,910.66,909.51,0.70667205]
[1768065438965,0.19121142,910.66,909.52,0.70667205]
[1768065439160,0.19121142,910.66,909.53,0.70667205]
[1768065439465,0.19121142,910.66,909.54,0.70667205]
[1768065439662,0.19121142,910.66,909.55,0.70667205]
[1768065439863,0.19121142,910.66,909.56,0.70667205]
[1768065440066,0.19121142,910.66,909.57,0.70667205]
[1768065440362,0.19121142,910.66,909.58,0.70667205]
[1768065440562,0.19121142,910.66,909.59,0.70667205]
[1768065440766,0.19121142,910.66,909.6,0.70667205]
[1768065440963,0.19121142,910.66,909.28,1.62]
[1768065441164,0.19121142,910.66,909.29,0.70700487]
[1768065441364,0.19121142,910.66,909.3,0.70700487]
[1768065441564,0.19121142,910.66,909.31,0.70700487]
[1768065441869,0.19121142,910.66,909.32,0.70700487]
[1768065442069,0.19121142,910.66,909.33,0.70700487]
[1768065442264,0.19121142,910.66,909.34,0.70700487]
[1768065442568,0.19121142,910.66,909.35,0.70700487]
[1768065442765,0.19121142,910.66,909.36,0.70700487]
[1768065442966,0.19121142,910.66,909.37,0.70700487]
[1768065443165,0.19121142,910.66,909.38,0.70700487]
[1768065443369,0.19121142,910.66,909.39,0.70700487]
[1768065443567,0.19121142,910.66,909.4,0.70700487]
[1768065443765,0.19121142,910.66,909.28,1.62]
[1768065443766,0.19121142,910.66,909.41,0.70700487]
[1768065443972,0.19121142,910.66,909.42,0.70700487]
[1768065444267,0.19121142,910.66,909.43,0.70700487]
[1768065444472,0.19121142,910.66,909.44,0.70700487]
[1768065444667,0.19121142,910.66,909.45,0.70700487]
[1768065444866,0.19121142,910.66,909.46,0.70700487]
[1768065445069,0.19121142,910.66,909.47,0.70700487]
[1768065445267,0.19121142,910.66,909.48,0.70700487]
[1768065445471,0.19121142,910.66,909.49,0.70700487]
[1768065445673,0.19121142,910.66,909.5,0.70700487]
[1768065445969,0.19121142,910.66,909.28,1.62]
[1768065446169,0.19121142,910.66,909.29,0.70661133]
[1768065446373,0.19121142,910.66,909.3,0.70661133]
[1768065446669,0.19121142,910.66,909.31,0.70661133]
[1768065446972,0.19121142,910.66,909.32,0.70661133]
[1768065447172,0.19121142,910.66,909.33,0.70661133]
[1768065447370,0.19121142,910.66,909.34,0.70661133]
[1768065447568,0.19121142,910.66,909.28,1.62]
[1768065447569,0.19121142,910.66,909.35,0.70661133]
[1768065447768,0.19121142,910.66,909.36,0.70661133]
[1768065447968,0.19121142,910.66,909.37,0.70661133]
[1768065448170,0.19121142,910.66,909.38,0.70661133]
[1768065448372,0.19121142,910.66,909.39,0.70661133]
[1768065448571,0.19121142,910.66,909.4,0.70661133]
[1768065448872,0.19121142,910.66,909.41,0.70661133]
[1768065449072,0.19121142,910.66,909.42,0.70661133]
[1768065449268,0.19121142,910.66,909.43,0.70661133]
[1768065449471,0.19121142,910.66,909.44,0.70661133]
[1768065449668,0.19121142,910.66,909.45,0.70661133]
[1768065449971,0.19121142,910.66,909.46,0.70661133]
[1768065450268,0.19121142,910.66,909.47,0.70661133]
[1768065450474,0.19121142,910.66,909.48,0.70661133]
[1768065450672,0.19121142,910.66,909.49,0.70661133]
[1768065450867,0.19121142,910.66,909.5,0.70661133]
[1768065451068,0.19121142,910.66,909.51,0.70661133]
[1768065451370,0.19121142,910.66,909.52,0.70661133]
[1768065451567,0.19121142,910.66,909.53,0.70661133]
[1768065451772,0.19121142,910.66,909.54,0.70661133]
[1768065451967,0.19121142,910.66,909.55,0.70661133]
[1768065452168,0.19121142,910.66,909.32,0.82205091]
[1768065452169,0.19121142,910.66,909.56,0.70661133]
[1768065452370,0.19121142,910.66,909.57,0.70661133]
[1768065452571,0.19121142,910.66,909.32,0.82205091]
[1768065452769,0.19121142,910.66,909.33,0.7063282]
[1768065452968,0.19121142,910.66,909.34,0.7063282]
[1768065453272,0.19121142,910.66,909.35,0.7063282]
[1768065453470,0.19121142,910.66,909.36,0.7063282]
[1768065453669,0.19121142,910.66,909.37,0.7063282]
[1768065453872,0.19121142,910.66,909.38,0.7063282]
[1768065454070,0.19121142,910.66,909.39,0.7063282]
[1768065454272,0.19121142,910.66,909.4,0.7063282]
[1768065454472,0.19121142,910.66,909.41,0.7063282]
[1768065454668,0.19121142,910.66,909.28,1.62]
[1768065454669,0.19121142,910.66,909.42,0.7063282]
[1768065454872,0.19121142,910.66,909.43,0.7063282]
[1768065455170,0.19121142,910.66,909.44,0.7063282]
[1768065455368,0.19121142,910.66,909.45,0.7063282]
[1768065455572,0.19121142,910.66,909.46,0.7063282]
[1768065455771,0.19121142,910.66,909.47,0.7063282]
[1768065455973,0.19121142,910.66,909.48,0.7063282]
[1768065456269,0.19121142,910.66,909.49,0.7063282]
[1768065456473,0.19121142,910.66,909.5,0.7063282]
[1768065456672,0.19121142,910.66,909.51,0.7063282]
[1768065456874,0.19121142,910.66,909.52,0.7063282]
[1768065457074,0.19121142,910.66,909.53,0.7063282]
[1768065457271,0.19121142,910.66,909.54,0.7063282]
[1768065457471,0.19121142,910.66,909.55,0.7063282]
[1768065457670,0.19121142,910.66,909.56,0.7063282]
[1768065457868,0.19121142,910.66,909.57,0.7063282]
[1768065458073,0.19121142,910.66,909.58,0.7063282]
[1768065458274,0.19121142,910.66,909.59,0.7063282]
[1768065458470,0.19121142,910.66,909.3,0.82205091]
[1768065458673,0.19121142,910.66,909.31,0.70629169]
[1768065458874,0.19121142,910.66,909.32,0.70629169]
[1768065459174,0.19121142,910.66,909.33,0.70629169]
[1768065459475,0.19121142,910.66,909.34,0.70629169]
[1768065459671,0.19121142,910.66,909.35,0.70629169]
[1768065459871,0.19121142,910.66,909.36,0.70629169]
[1768065460175,0.19121142,910.66,909.37,0.70620823]
[1768065460474,0.19121142,910.66,909.38,0.70620823]
[1768065460672,0.19121142,910.66,909.39,0.70620823]
[1768065460876,0.19121142,910.66,909.4,0.70620823]
[1768065461176,0.19121142,910.66,909.41,0.70620823]
[1768065461374,0.19121142,910.66,909.42,0.70620823]
[1768065461574,0.19121142,910.66,909.43,0.70620823]
[1768065461774,0.19121142,910.66,909.44,0.70620823]
[1768065461973,0.19121142,910.66,909.45,0.70620823]
[1768065462176,0.19121142,910.66,909.46,0.70620823]
[1768065462377,0.19121142,910.66,909.47,0.70620823]
[1768065462677,0.19121142,910.66,909.48,0.70620823]
[1768065462879,0.19121142,910.66,909.49,0.70620823]
[1768065463078,0.19121142,910.66,909.5,0.70620823]
[1768065463273,0.19121142,910.66,909.51,0.70620823]
[1768065463476,0.19121142,910.66,909.52,0.70620823]
[1768065463677,0.19121142,910.66,909.53,0.70620823]
[1768065463875,0.19121142,910.66,909.54,0.70620823]
[1768065464080,0.19121142,910.66,909.55,0.70620823]
[1768065464378,0.19121142,910.66,909.56,0.70620823]
[1768065464578,0.19121142,910.66,909.57,0.70620823]
[1768065464778,0.19121142,910.66,909.58,0.70620823]
[1768065464981,0.19121142,910.66,909.59,0.70620823]
[1768065465178,0.19121142,910.66,909.6,0.70620823]
[1768065465375,0.19121142,910.66,909.61,0.70620823]
[1768065465577,0.19121142,910.66,909.62,0.70620823]
[1768065465778,0.19121142,910.66,909.63,0.70620823]
[1768065466077,0.19121142,910.66,909.64,0.70620823]
[1768065466376,0.19121142,910.66,909.65,0.70620823]
[1768065466581,0.19121142,910.66,909.42,0.82092183]
[1768065466582,0.19121142,910.66,909.66,0.70620823]
[1768065466781,0.19121142,910.66,909.67,0.70620823]
[1768065467082,0.19121142,910.66,909.68,0.70620823]
[1768065467281,0.19121142,910.66,909.69,0.70620823]
[1768065467580,0.19121142,910.66,909.7,0.70620823]
[1768065467781,0.19121142,910.66,909.41,0.82092183]
[1768065467982,0.19121142,910.66,909.42,0.7068205]
[1768065468182,0.19121142,910.66,909.43,0.7068205]
[1768065468380,0.19121142,910.66,909.44,0.7068205]
[1768065468679,0.19121142,910.66,909.45,0.7068205]
[1768065468883,0.19121142,910.66,909.46,0.7068205]
[1768065469088,0.19121142,910.66,909.47,0.7068205]
[1768065469383,0.19121142,910.66,909.48,0.7068205]
[1768065469584,0.19121142,910.66,909.49,0.7068205]
[1768065469883,0.19121142,910.66,909.5,0.7068205]
[1768065470184,0.19121142,910.66,909.51,0.7068205]
[1768065470382,0.19121142,910.66,909.52,0.7068205]
[1768065470682,0.19121142,910.66,909.53,0.7068205]
[1768065470983,0.19121142,910.66,909.54,0.7068205]
[1768065471179,0.19121142,910.66,909.55,0.7068205]
[1768065471383,0.19121142,910.66,909.56,0.7068205]
[1768065471684,2.72679797,911.32,909.57,0.7068205]
[1768065471986,2.72679797,911.32,909.58,0.7068205]
[1768065472177,2.72679797,911.32,909.59,0.7068205]
[1768065472382,2.72679797,911.32,909.6,0.7068205]
[1768065472578,2.72679797,911.32,909.61,0.7068205]
[1768065472780,2.72679797,911.32,909.62,0.7068205]
[1768065472979,2.72679797,911.31,909.63,0.7068205]
[1768065473183,2.72679797,911.31,909.64,0.7068205]
[1768065473385,2.72679797,911.31,909.65,0.7068205]
[1768065473585,2.72679797,911.31,909.66,0.7068205]
[1768065473785,2.72679797,911.31,909.67,0.7068205]
[1768065473982,2.72679797,911.31,909.68,0.7068205]
[1768065474186,2.72679797,911.31,909.39,0.82092183]
[1768065474486,2.72679797,911.32,909.4,0.70643627]
[1768065474684,2.72679797,911.32,909.41,0.70643627]
[1768065474881,2.72679797,911.32,909.42,0.70643627]
[1768065475083,2.72679797,911.32,909.43,0.70643627]
[1768065475284,2.72679797,911.32,909.44,0.70643627]
[1768065475487,2.72679797,911.32,909.39,0.82092183]
[1768065475488,2.72679797,911.32,909.45,0.70643627]
[1768065475689,2.72679797,911.32,909.46,0.70643627]
[1768065475987,2.72679797,911.32,909.47,0.70643627]
[1768065476184,2.72679797,911.32,909.48,0.70643627]
[1768065476383,2.72679797,911.32,909.49,0.70643627]
[1768065476686,2.72679797,911.32,909.5,0.70643627]
[1768065476884,2.72679797,911.32,909.51,0.70643627]
[1768065477083,2.72679797,911.32,909.52,0.70643627]
[1768065477288,2.72679797,911.32,909.53,0.70643627]
[1768065477485,2.72679797,911.32,909.54,0.70643627]
[1768065477689,2.72679797,911.32,909.55,0.70643627]
[1768065477890,2.72679797,911.32,909.56,0.70643627]
[1768065478188,2.72679797,911.32,909.57,0.70643627]
[1768065478386,2.72679797,911.32,909.58,0.70643627]
[1768065478589,2.72679797,911.32,909.59,0.70643627]
[1768065478790,2.72679797,911.32,909.6,0.70643627]
[1768065479090,2.72679797,911.32,909.61,0.70643627]
[1768065479290,2.72679797,911.32,909.62,0.70643627]
[1768065479486,2.72679797,911.32,909.63,0.70643627]
[1768065479691,2.72679797,911.32,909.64,0.70643627]
[1768065480007,2.72679797,911.32,909.65,0.70643627]
[1768065480191,2.72679797,911.32,909.66,0.70643627]
[1768065480391,2.72679797,911.32,909.67,0.70643627]
[1768065480592,2.72679797,911.32,909.68,0.70643627]
[1768065480790,2.72679797,911.32,909.47,1.983]
[1768065480992,2.72679797,911.32,909.48,0.7061638]
[1768065481189,2.72679797,911.32,909.49,0.7061638]
[1768065481493,2.72679797,911.32,909.5,0.7061638]
[1768065481689,2.72679797,911.32,909.51,0.7061638]
[1768065481993,2.72679797,911.32,909.52,0.7061638]
[1768065482288,2.72679797,911.32,909.53,0.7061638]
[1768065482493,2.72679797,911.32,909.54,0.7061638]
[1768065482692,2.72679797,911.32,909.47,1.983]
[1768065482693,2.72679797,911.32,909.55,0.7061638]
[1768065482990,0.19118043,910.88,909.56,0.70780363]
[1768065483194,0.19118043,910.88,909.47,1.983]
[1768065483394,0.19118043,910.88,909.48,0.70778952]
[1768065483692,0.19118043,910.88,909.49,0.70778952]
[1768065483890,0.19118043,910.88,909.5,0.70778952]
[1768065484092,0.19118043,910.88,909.51,0.70778952]
[1768065484293,0.19118043,910.88,909.52,0.70778952]
[1768065484490,0.19118043,910.88,909.53,0.70778952]
[1768065484692,0.19118043,910.88,909.54,0.70778952]
[1768065484893,0.19118043,910.88,909.55,0.70778952]
[1768065485192,0.19118043,910.88,909.56,0.70778952]
[1768065485390,0.19118043,910.88,909.47,1.983]
[1768065485593,0.19118043,910.88,909.48,0.70779629]
[1768065485892,0.19118043,910.88,909.49,0.70779629]
[1768065486092,0.19118043,910.88,909.5,0.70779629]
[1768065486292,0.19118043,910.88,909.47,1.983]
[1768065486293,0.19118043,910.88,909.51,0.70779629]
[1768065486593,0.19118043,910.88,909.52,0.70779629]
[1768065486788,0.19118043,910.88,909.53,0.70779629]
[1768065486993,0.19118043,910.88,909.54,0.70779629]
[1768065487189,0.19118043,910.88,909.55,0.70779629]
[1768065487395,0.19118043,910.88,909.56,0.70779629]
[1768065487593,0.19118043,910.88,909.57,0.70779629]
[1768065487793,0.19118043,910.88,909.47,1.983]
[1768065487994,0.19118043,910.88,909.48,0.70796338]
[1768065488290,0.19118043,910.88,909.47,1.983]
[1768065488291,0.19118043,910.88,909.49,0.70796338]
[1768065488494,0.19118043,910.88,909.5,0.70796338]
[1768065488695,0.19118043,910.88,909.51,0.70796338]
[1768065488893,0.19118043,910.88,909.52,0.70796338]
[1768065489094,0.19118043,910.88,909.53,0.70796338]
[1768065489295,0.19118043,910.88,909.54,0.70796338]
[1768065489495,0.19118043,910.88,909.55,0.70796338]
[1768065489696,0.19118043,910.88,909.56,0.70796338]
[1768065489896,0.19118043,910.88,909.57,0.70796338]
[1768065490097,0.19118043,910.88,909.58,0.70796338]
[1768065490298,0.19118043,910.88,909.59,0.70830916]
[1768065490597,0.19118043,910.88,909.47,1.983]
[1768065490797,0.19118043,910.88,909.48,0.70828669]
[1768065491097,0.19118043,910.88,909.49,0.70828669]
[1768065491299,0.19118043,910.88,909.5,0.70828669]
[1768065491495,0.19118043,910.88,909.51,0.70828669]
[1768065491698,0.19118043,910.88,909.52,0.70828669]
[1768065491895,0.19118043,910.88,909.53,0.70828669]
[1768065492098,0.19118043,910.88,909.54,0.70828669]
[1768065492394,0.19118043,910.88,909.55,0.70828669]
[1768065492594,0.19118043,910.88,909.56,0.70828669]
[1768065492897,0.19118043,910.88,909.57,0.70828669]
[1768065493197,0.19118043,910.88,909.58,0.70828669]
[1768065493393,0.19118043,910.88,909.47,1.983]
[1768065493394,0.19118043,910.88,909.59,0.70828669]
[1768065493597,0.19118043,910.88,909.6,0.70828669]
[1768065493795,0.19118043,910.88,909.61,0.70828669]
[1768065493995,0.19118043,910.88,909.62,0.70828669]
[1768065494296,0.19118043,910.88,909.63,0.70828669]
[1768065494495,0.19118043,910.88,909.64,0.70828669]
[1768065494696,0.19118043,910.88,909.65,0.70828669]
[1768065494998,0.19118043,910.88,909.66,0.70828669]
[1768065495198,0.19118043,910.88,909.67,0.70828669]
[1768065495399,0.19118043,910.88,909.68,0.70828669]
[1768065495599,0.19118043,910.88,909.69,0.70828669]
[1768065495799,0.19118043,910.88,909.7,0.70828669]
[1768065496094,0.19118043,910.88,909.71,0.70828669]
[1768065496298,0.19118043,910.88,909.47,1.983]
[1768065496499,0.19118043,910.88,909.48,0.70885455]
[1768065496699,0.19118043,910.88,909.49,0.70885455]
[1768065496899,0.19118043,910.88,909.5,0.70885455]
[1768065497097,0.19118043,910.88,909.51,0.70885455]
[1768065497398,0.19118043,910.88,909.52,0.70885455]
[1768065497597,0.19118043,910.88,909.53,0.70885455]
[1768065497801,0.19118043,910.88,909.54,0.70885455]
[1768065497997,0.19118043,910.88,909.55,0.70885455]
[1768065498197,0.19118043,910.88,909.56,0.70885455]
[1768065498397,0.19118043,910.88,909.57,0.70885455]
[1768065498599,0.19118043,910.88,909.58,0.70885455]
[1768065498898,0.19118043,910.88,909.59,0.70885455]
[1768065499102,0.19118043,910.88,909.6,0.70885455]
[1768065499302,0.19118043,910.88,909.61,0.70885455]
[1768065499604,0.19118043,910.88,909.62,0.70885455]
[1768065499900,0.19118043,910.88,909.63,0.70885455]
[1768065500102,0.19118043,910.88,909.64,0.70885455]
[1768065500300,0.19118043,910.88,909.65,0.70885455]
[1768065500505,0.19118043,910.88,909.66,0.70885455]
[1768065500702,0.19118043,910.88,909.67,0.70885455]
[1768065500902,0.19118043,910.88,909.68,0.70885455]
[1768065501206,0.19118043,910.88,909.69,0.70885455]
[1768065501406,0.19118043,910.88,909.7,0.70885455]
[1768065501702,0.19118043,910.88,909.71,0.70885455]
[1768065501908,0.19118043,910.88,909.72,0.70885455]
[1768065502206,0.19118043,910.88,909.73,0.70885455]
[1768065502406,0.19118043,910.88,909.47,1.983]
[1768065502706,0.19118043,910.88,909.48,0.70940815]
[1768065502903,0.19118043,910.88,909.49,0.70940815]
[1768065503104,0.19118043,910.88,909.5,0.70940815]
[1768065503308,0.19118043,910.88,909.51,0.70940815]